fUST/lending_fUST_20260225
["ID","MTS","AMOUNT","RATE_DAILY","PERIOD"]
[406633554,1771999850479,-251.58230031,0.0005,120]
[406633555,1771999850492,-679.4449247,0.0005,120]
[406633556,1771999850501,-165.68927889,0.0005,120]
[406633557,1771999850510,-177.7766341,0.0005,120]
[406633558,1771999850520,-1000.0,0.0005,30]
[406633559,1771999850531,-500.0,0.0005,120]
[406633560,1771999850540,-167.0,0.0005,4]
[406633561,1771999850551,-152.0,0.0005,120]
[406633562,1771999850566,-292.44,0.0005,120]
[406633563,1771999850576,-101095.80704126,0.0005,120]
[406633564,1771999850585,-155.12251146,0.0005,90]
[406633565,1771999850595,-179.24133168,0.0005,120]
[406633566,1771999850605,-258.40971019,0.0005,120]
[406633567,1771999850615,-500.88670793,0.0005,120]
[406633568,1771999850625,-509.72873021,0.0005,120]
[406633569,1771999850634,-519.64299261,0.0005,120]
[406633570,1771999850644,-500.0,0.0005,60]
[406633571,1771999850654,-500.0,0.0005,60]
[406633572,1771999850663,-409.1,0.0005,120]
[406633573,1771999850678,-285.0,0.00050102,120]
[406633574,1771999850687,-308.64,0.00050136,46]
[406633575,1771999850697,-9745.93588393,0.00050158,30]
[406633576,1771999850706,-512.9,0.000502,30]
[406633577,1771999850716,-200.0,0.000503,60]
[406633578,1771999850725,-556.98,0.000503,14]
[406633579,1771999850734,-1000.0,0.000503,60]
[406633580,1771999850744,-194.0,0.000503,60]
[406633581,1771999850754,-403.0,0.0005038,31]
[406633582,1771999850763,-1520.6,0.000504,30]
[406633583,1771999850772,-173.0,0.000504,31]
[406633584,1771999850782,-397.0,0.000504,31]
[406633585,1771999850792,-400.0,0.000504,31]
[406633586,1771999850801,-403.0,0.000504,31]
[406633587,1771999850811,-403.0,0.000504,31]
[406633588,1771999850821,-5730.04,0.0005041,120]
[406633589,1771999850830,-500.9,0.0005044,120]
[406633590,1771999850840,-162.0,0.0005058,31]
[406633591,1771999850849,-160.0,0.000506,12]
[406633592,1771999850859,-171.16589951,0.000506,5]
[406633593,1771999850868,-300.0,0.000506,60]
[406633594,1771999850878,-1000.0,0.000506,60]
[406633595,1771999850887,-300.0,0.000506,60]
[406633596,1771999850896,-409.1,0.00050616,120]
[406633597,1771999850906,-677.65,0.0005071,14]
[406633598,1771999850915,-500.0,0.00050726,120]
[406633599,1771999850925,-500.0,0.00050726,120]
[406633600,1771999850934,-500.0,0.00050726,120]
[406633601,1771999850943,-500.0,0.00050726,120]
[406633602,1771999850953,-500.0,0.00050726,120]
[406633603,1771999850962,-500.0,0.00050726,120]
[406633604,1771999850972,-500.0,0.00050726,120]
[406633605,1771999850981,-500.0,0.00050726,120]
[406633606,1771999850990,-500.0,0.00050726,120]
[406633607,1771999851000,-500.0,0.00050726,120]
[406633608,1771999851129,-500.0,0.00050726,120]
[406633609,1771999851139,-500.0,0.00050726,120]
[406633610,1771999851150,-500.0,0.00050726,120]
[406633611,1771999851160,-500.0,0.00050726,120]
[406633612,1771999851170,-500.0,0.00050726,120]
[406633613,1771999851180,-500.0,0.00050726,120]
[406633614,1771999851190,-500.0,0.00050726,120]
[406633615,1771999851200,-500.0,0.00050726,120]
[406633616,1771999851210,-500.0,0.00050726,120]
[406633617,1771999851219,-500.0,0.00050726,120]
[406633618,1771999851228,-500.0,0.00050726,120]
[406633619,1771999851238,-500.0,0.00050726,120]
[406633620,1771999851247,-500.0,0.00050726,120]
[406633621,1771999851256,-500.0,0.00050726,120]
[406633622,1771999851266,-500.0,0.00050726,120]
[406633623,1771999851276,-500.0,0.00050726,120]
[406633624,1771999851285,-500.0,0.00050726,120]
[406633625,1771999851295,-500.0,0.00050726,120]
[406633626,1771999851304,-500.0,0.00050726,120]
[406633627,1771999851314,-500.0,0.00050726,120]
[406633628,1771999851324,-500.0,0.00050726,120]
[406633629,1771999851334,-500.0,0.00050726,120]
[406633630,1771999851343,-500.0,0.00050726,120]
[406633631,1771999851353,-500.0,0.00050726,120]
[406633632,1771999851362,-500.0,0.00050726,120]
[406633633,1771999851371,-500.0,0.00050726,120]
[406633634,1771999851381,-500.0,0.00050726,120]
[406633635,1771999851390,-207.8681,0.00050726,120]
[406633636,1771999851400,-152.0,0.000508,120]
[406633637,1771999851410,-308.64,0.00050821,50]
[406633638,1771999851419,-5000.0,0.00050824,30]
[406633639,1771999851428,-5000.0,0.00050824,30]
[406633640,1771999851438,-5000.0,0.00050824,30]
[406633641,1771999851447,-5000.0,0.00050824,30]
[406633642,1771999851456,-5000.0,0.00050824,30]
[406633643,1771999851466,-5000.0,0.00050824,30]
[406633644,1771999851476,-5000.0,0.00050824,30]
[406633645,1771999851489,-292.0,0.00050852,21]
[406633646,1771999851498,-402.0,0.00050858,31]
[406633647,1771999851507,-150.0,0.00050877,21]
[406633648,1771999851516,-500.0,0.000509,60]
[406633649,1771999851527,-1000.0,0.000509,60]
[406633650,1771999851536,-180.0,0.00050904,120]
[406633651,1771999851545,-173.66218343,0.00050904,120]
[406633652,1771999851556,-6016.54,0.0005091,120]
[406633653,1771999851565,-216.0,0.00050925,21]
[406633654,1771999851575,-1979757.22670202,0.00051,3]
[406633655,1771999852379,-208.11131935,0.00029226,2]
[406633656,1771999852389,-198.197055,0.0004297,120]
[406633657,1771999852398,-260.42,0.00046305,120]
[406633658,1771999852407,-6924.50606903,0.00051,3]
[406636358,1772001038386,-150.0,0.0002589,2]
[406636359,1772001038396,-177.0,0.0002789,2]
[406636360,1772001038406,-447.22018852,0.00029,15]
[406636361,1772001038415,-204.0,0.0002989,2]
[406636362,1772001038425,-156.75,0.00030397,2]
[406636363,1772001038435,-159.174379,0.00030462,2]
[406636364,1772001038445,-253.31262801,0.0003091,2]
[406636365,1772001038456,-491.23089178,0.0003091,2]
[406636366,1772001038466,-200.0,0.0003093,2]
[406636367,1772001038475,-1850.1461611,0.00030931,2]
[406636368,1772001038485,-5480.13935434,0.0003189,2]
[406636369,1772001038495,-231.0,0.0003189,2]
[406636370,1772001038504,-412.16279303,0.0003295,2]
[406636371,1772001038514,-198.197055,0.000332,117]
[406636372,1772001038523,-165.2104204,0.00033669,2]
[406636373,1772001038533,-258.0,0.0003389,120]
[406636374,1772001038543,-379.63820675,0.00034998,7]
[406636375,1772001038552,-326.65385809,0.00034998,7]
[406636376,1772001038561,-503.38904603,0.00034998,7]
[406636377,1772001038571,-500.0,0.00034998,7]
[406636378,1772001038580,-500.0,0.00034998,7]
[406636379,1772001038589,-500.0,0.00034998,7]
[406636380,1772001038599,-500.0,0.00034998,7]
[406636381,1772001038608,-500.0,0.00034998,7]
[406636382,1772001038618,-500.0,0.00034998,7]
[406636383,1772001038628,-188.63625831,0.00034998,7]
[406636384,1772001038638,-500.0,0.00034998,7]
[406636385,1772001038647,-500.0,0.00034998,7]
[406636386,1772001038656,-500.0,0.00034998,7]
[406636387,1772001038666,-334.96346646,0.00034998,7]
[406636388,1772001038675,-500.0,0.00034998,7]
[406636389,1772001038684,-500.0,0.00034998,2]
[406636390,1772001038694,-500.0,0.00034998,7]
[406636391,1772001038704,-500.0,0.00034998,2]
[406636392,1772001038714,-500.0,0.00034998,7]
[406636393,1772001038723,-500.0,0.00034998,7]
[406636394,1772001038733,-500.0,0.00034998,7]
[406636395,1772001038743,-500.0,0.00034998,7]
[406636396,1772001038752,-500.0,0.00034998,7]
[406636397,1772001038762,-500.0,0.00034998,2]
[406636398,1772001038772,-500.0,0.00034998,7]
[406636399,1772001038782,-274.50126876,0.00034998,7]
[406636400,1772001038791,-500.0,0.00034998,7]
[406636401,1772001038801,-500.0,0.00034998,7]
[406636402,1772001038810,-500.0,0.00034998,2]
[406636403,1772001038820,-500.0,0.00034998,7]
[406636404,1772001038833,-500.0,0.00034998,7]
[406636405,1772001038843,-590.39557683,0.00034998,7]
[406636406,1772001038852,-500.0,0.00034998,2]
[406636407,1772001038861,-500.0,0.00034998,7]
[406636408,1772001038871,-500.0,0.00034998,2]
[406636409,1772001038881,-500.0,0.00034998,7]
[406636410,1772001038890,-500.0,0.00034998,2]
[406636411,1772001038901,-500.0,0.00034998,2]
[406636412,1772001038911,-500.0,0.00034998,7]
[406636413,1772001038920,-500.0,0.00034998,2]
[406636414,1772001038930,-170.43185708,0.00034998,7]
[406636415,1772001038939,-500.0,0.00034998,2]
[406636416,1772001038949,-500.0,0.00034998,2]
[406636417,1772001038959,-500.0,0.00034998,2]
[406636418,1772001038968,-500.0,0.00034998,2]
[406636419,1772001038978,-500.0,0.00034998,2]
[406636420,1772001038988,-500.0,0.00034998,2]
[406636421,1772001038998,-500.0,0.00034998,2]
[406636422,1772001039008,-500.0,0.00034998,2]
[406636423,1772001039018,-500.0,0.00034998,2]
[406636424,1772001039027,-500.0,0.00034998,2]
[406636425,1772001039037,-500.0,0.00034998,2]
[406636426,1772001039047,-500.0,0.00034998,2]
[406636427,1772001039056,-500.0,0.00034998,2]
[406636428,1772001039066,-500.0,0.00034998,2]
[406636429,1772001039076,-500.0,0.00034998,2]
[406636430,1772001039085,-500.0,0.00034998,2]
[406636431,1772001039094,-500.0,0.00034998,2]
[406636432,1772001039103,-500.0,0.00034998,2]
[406636433,1772001039113,-500.0,0.00034998,2]
[406636434,1772001039122,-500.0,0.00034998,2]
[406636435,1772001039132,-500.0,0.00034998,2]
[406636436,1772001039141,-500.0,0.00034998,2]
[406636437,1772001039150,-500.0,0.00034998,2]
[406636438,1772001039159,-500.0,0.00034998,2]
[406636439,1772001039168,-202.10976827,0.00034998,2]
[406636440,1772001039177,-500.0,0.00034998,2]
[406636441,1772001039186,-500.0,0.00034998,2]
[406636442,1772001039195,-500.0,0.00034998,2]
[406636443,1772001039204,-500.0,0.00034998,2]
[406636444,1772001039213,-500.0,0.00034998,2]
[406636445,1772001039222,-500.0,0.00034998,2]
[406636446,1772001039231,-500.0,0.00034998,2]
[406636447,1772001039240,-500.0,0.00034998,2]
[406636448,1772001039249,-1002.27,0.00035,6]
[406636449,1772001039259,-744.54351979,0.00035259,7]
[406636450,1772001039268,-285.0,0.0003589,120]
[406636451,1772001039277,-450.39245384,0.000375,120]
[406636452,1772001039287,-455.49674743,0.00037609,2]
[406636453,1772001039296,-278.55396363,0.0003784,120]
[406636454,1772001039305,-471.04319203,0.00037886,2]
[406636455,1772001039315,-312.0,0.0003789,120]
[406636456,1772001039324,-432.92631232,0.00038,120]
[406636457,1772001039333,-339.0,0.0003989,120]
[406636458,1772001039342,-1969.73,0.00039988,10]
[406636459,1772001039352,-1641.44,0.00039988,10]
[406636460,1772001039362,-23286.06477735,0.00039998,2]
[406636461,1772001039375,-322.59181682,0.00039998,2]
[406636535,1772001040806,-7854.89223927,0.00039998,2]
[406636538,1772001040817,-569.01669172,0.00039998,2]
[406636795,1772001043708,-29779.27264767,0.00039998,2]
[406636796,1772001043718,-274.30463504,0.0004,2]
[406636797,1772001043728,-577.32,0.0004,7]
[406636798,1772001043737,-238.78,0.0004,120]
[406636800,1772001043746,-260.43,0.0004,120]
[406636801,1772001043756,-500.0,0.0004089,120]
[406636802,1772001043766,-500.0,0.0004089,120]
[406636804,1772001043775,-500.0,0.0004089,120]
[406636805,1772001043784,-151.52,0.0004089,120]
[406636806,1772001043795,-366.0,0.0004189,120]
[406636807,1772001043804,-314.6391,0.00041892,2]
[406636809,1772001043814,-500.0,0.000419,120]
[406636810,1772001043824,-4320.0,0.000419,120]
[406636811,1772001043835,-500.0,0.00041907,2]
[406636812,1772001043846,-2500.0,0.0004191,120]
[406636814,1772001043855,-238.78,0.00042,120]
[406636815,1772001043865,-2625.0,0.0004241,120]
[406636816,1772001043876,-184.145,0.0004241,64]
[406636817,1772001043886,-2756.25,0.0004291,120]
[406636819,1772001043896,-314.6391,0.0004294,2]
[406636820,1772001043905,-2894.06,0.0004341,120]
[406636821,1772001043916,-500.0,0.00043836,16]
[406636823,1772001043925,-393.0,0.0004389,120]
[406636824,1772001043935,-3038.76,0.0004391,120]
[406636825,1772001043944,-314.6391,0.00043987,2]
[406636826,1772001043954,-3190.7,0.0004441,120]
[406636828,1772001043964,-3350.23,0.0004491,120]
[406636830,1772001043973,-179.78425889,0.00045128,32]
[406636832,1772001043984,-500.0,0.00045215,17]
[406636833,1772001043994,-3517.75,0.0004541,120]
[406636834,1772001044003,-159.174379,0.00045693,2]
[406636835,1772001044013,-420.0,0.0004589,120]
[406636837,1772001044023,-3693.63,0.0004591,120]
[406636838,1772001044034,-577.32,0.00046,14]
[406636839,1772001044044,-415.21071956,0.00046131,4]
[406636841,1772001044054,-4602.46,0.00046409,120]
[406636842,1772001044064,-3878.32,0.0004641,120]
[406636843,1772001044074,-821.5,0.00046652,60]
[406636844,1772001044084,-4072.23,0.0004691,120]
[406636846,1772001044094,-231.48,0.00047397,30]
[406636847,1772001044103,-689.82,0.0004741,120]
[406636848,1772001044112,-447.0,0.0004789,120]
[406636849,1772001044120,-231.48,0.00048082,34]
[406636850,1772001044130,-231.48,0.00048767,38]
[406636852,1772001044139,-231.48,0.00049452,42]
[406636853,1772001044148,-474.0,0.0004989,120]
[406636854,1772001044157,-18901.883375,0.0005,120]
[406636856,1772001044166,-2532.73,0.0005,30]
[406636857,1772001044175,-161.0,0.0005007,31]
[406636858,1772001044186,-231.48,0.00050136,46]
[406636859,1772001044195,-500.0,0.0005049,3]
[406636861,1772001044204,-500.0,0.0005049,3]
[406636862,1772001044213,-500.0,0.0005049,3]
[406636863,1772001044223,-500.0,0.0005049,3]
[406636866,1772001044375,-500.0,0.0005049,3]
[406636867,1772001044392,-500.0,0.0005049,3]
[406636868,1772001044401,-500.0,0.0005049,3]
[406636869,1772001044411,-500.0,0.0005049,3]
[406636870,1772001044420,-500.0,0.0005049,3]
[406636871,1772001044430,-500.0,0.0005049,3]
[406636872,1772001044439,-500.0,0.0005049,3]
[406636873,1772001044450,-500.0,0.0005049,3]
[406636875,1772001044459,-500.0,0.0005049,3]
[406636876,1772001044469,-500.0,0.0005049,3]
[406636877,1772001044478,-500.0,0.0005049,3]
[406636878,1772001044487,-500.0,0.0005049,3]
[406636879,1772001044497,-500.0,0.0005049,3]
[406636880,1772001044507,-500.0,0.0005049,3]
[406636881,1772001044516,-500.0,0.0005049,3]
[406636883,1772001044525,-500.0,0.0005049,3]
[406636884,1772001044535,-577.36666782,0.0005049,3]
[406636885,1772001044544,-744.54351979,0.0005049,3]
[406636886,1772001044554,-712.0,0.0005072,31]
[406636887,1772001044563,-231.48,0.00050821,50]
[406636888,1772001044572,-577.32,0.000509,14]
[406636889,1772001044581,-209.40437684,0.00050999,3]
[406636890,1772001044602,-217.15233878,0.00050999,3]
[406636891,1772001044621,-225.18697532,0.00050999,3]
[406636892,1772001044631,-233.51889341,0.00050999,3]
[406636893,1772001044641,-242.15909246,0.00050999,3]
[406636894,1772001044650,-251.11897888,0.00050999,3]
[406636895,1772001044659,-260.4103811,0.00050999,3]
[406636896,1772001044668,-270.0455652,0.00050999,3]
[406636897,1772001044677,-280.03725112,0.00050999,3]
[406636898,1772001044686,-290.39862941,0.00050999,3]
[406636900,1772001044696,-301.1433787,0.00050999,3]
[406636901,1772001044705,-286.01581847,0.00050999,3]
[406636902,1772001044715,-365634.33866787,0.00051,3]
[406636903,1772001044726,-13272.520547,0.00051,3]
[406636910,1772001044925,-380.35193102,0.00051,3]
[406636914,1772001044936,-288.41621054,0.00051,3]
[406637055,1772001551551,1500.0,0.000157,120]
[406637064,1772002014132,-276.52534847,0.00015543,2]
[406637065,1772002034041,264.0,0.000157,120]
[406637066,1772002164875,-3861.35842319,0.000157,30]
[406637067,1772002177783,-150.0,0.00015622,2]
[406637068,1772002177804,-1095.629387,0.000157,2]
[406637069,1772002177824,-1338.86,0.000157,2]
[406637166,1772002238444,-177.0,0.00017622,2]
[406637167,1772002238454,-300.0,0.0001962,2]
[406637168,1772002238463,-204.0,0.00019622,2]
[406637169,1772002238472,-231.0,0.00021622,2]
[406637170,1772002238483,-323.23080554,0.00023521,2]
[406637217,1772002241430,-93.96916739,0.00023521,2]
[406637432,1772002243658,-305.32318179,0.00023521,2]
[406637480,1772002686589,-359.11,0.000157,10]
[406637481,1772002693206,-4998.62673355,0.00019536,2]
[406637482,1772002693228,-150.0,0.00019636,2]
[406637484,1772003107529,-150.0,0.00022636,2]
[406637486,1772003251150,-177.0,0.00024636,2]
[406637487,1772003251174,-296.67327033,0.00024666,2]
[406637522,1772003438777,-153.16957801,0.0002349,5]
[406637523,1772003438787,-158.89884542,0.0002349,5]
[406637524,1772003438797,-1901.66360717,0.00024666,2]
[406637525,1772003438807,-150.0,0.00024815,2]
[406637526,1772003438817,-177.0,0.00026815,2]
[406637527,1772003438826,-220.7083472,0.00027,120]
[406637528,1772003438838,-29.5467528,0.00027,120]
[406637529,1772003438848,-200.0,0.00027,120]
[406637530,1772003438857,-200.0,0.00027,120]
[406637531,1772003438867,-800.0,0.00027059,15]
[406637532,1772003438877,-240.26180429,0.00027166,2]
[406637533,1772003438886,-800.0,0.00028606,19]
[406637534,1772003438896,-204.0,0.00028815,2]
[406637535,1772003438906,-450.23072072,0.00028815,2]
[406637536,1772003438918,-2862.41754913,0.00028815,2]
[406637537,1772003438927,-197.011454,0.00029121,60]
[406637538,1772003438937,-800.0,0.00030005,23]
[406637539,1772003438947,-744.54351979,0.00030569,2]
[406637540,1772003438957,-168.0,0.00030654,7]
[406637541,1772003438966,-219.6,0.00030667,2]
[406637542,1772003438976,-171.0,0.0003078,7]
[406637543,1772003438986,-225.3840398,0.00030815,2]
[406637612,1772003441193,-5.6159602,0.00030815,2]
[406637614,1772003441203,-334.950679,0.00030887,2]
[406637887,1772003523010,539.21757022,0.000159,120]
[406637911,1772004541113,151.0,0.000125,2]
[406637942,1772004579682,151.0,0.000125,2]
[406637969,1772004620623,151.0,0.000125,2]
[406638005,1772004640367,-150.0,0.00025291,2]
[406638006,1772004640377,-6000.00000163,0.00026,30]
[406638007,1772004640388,-411.56,0.00026582,14]
[406638008,1772004640398,-200.0,0.00026644,13]
[406638009,1772004640409,-177.0,0.00027291,2]
[406638010,1772004640418,-100.90540317,0.00028318,2]
[406638011,1772004640430,-336.00614683,0.00028318,2]
[406638012,1772004640441,-570.85184417,0.00028481,19]
[406638013,1772004640453,-229.14815583,0.00028481,19]
[406638014,1772004640464,-197.011454,0.00028672,30]
[406638015,1772004640476,-184.89622,0.00028672,30]
[406638016,1772004640487,-204.0,0.00029291,2]
[406638017,1772004640495,-485.13360397,0.00030151,2]
[406638050,1772004645855,-37.61899409,0.00030151,2]
[406638051,1772004645865,-500.0,0.0003018,2]
[406638052,1772004645874,-287.82173076,0.0003018,2]
[406638053,1772004645883,-530.90815955,0.0003018,2]
[406638054,1772004645893,-800.0,0.00030181,24]
[406638055,1772004645902,-14356.21947923,0.00030181,2]
[406638056,1772004645912,-452.2875794,0.0003025,2]
[406638057,1772004645922,-1.19561353,0.0003025,120]
[406638058,1772004658754,151.0,0.00017,120]
[406638061,1772004778228,151.0,0.000125,2]
[406638062,1772004827654,151.0,0.000125,2]
[406638063,1772004859436,151.0,0.000125,2]
[406638064,1772004908674,151.0,0.000125,2]
[406638066,1772004949649,151.0,0.000125,2]
[406638071,1772004988195,151.0,0.000125,2]
[406638072,1772005019100,151.0,0.000125,2]
[406638084,1772005067797,151.0,0.000125,2]
[406638099,1772005109592,151.0,0.000125,2]
[406638100,1772005158061,151.0,0.000125,2]
[406638101,1772005190683,151.0,0.000125,2]
[406638104,1772005230999,151.0,0.000125,2]
[406638106,1772005270825,151.0,0.000125,2]
[406638109,1772005308912,151.0,0.000125,2]
[406638110,1772005341235,151.0,0.000125,2]
[406638112,1772005385795,151.0,0.000125,2]
[406638115,1772005419310,151.0,0.000125,2]
[406638116,1772005460891,151.0,0.000125,2]
[406638119,1772005500468,151.0,0.000125,2]
[406638120,1772005549193,151.0,0.000125,2]
[406638121,1772005590499,151.0,0.000125,2]
[406638122,1772005610118,-150.0,0.00025249,2]
[406638123,1772005610140,-126.52534847,0.00025292,2]
[406638134,1772005638715,151.0,0.000125,2]
[406638135,1772005669938,151.0,0.000125,2]
[406638136,1772005708515,151.0,0.000125,2]
[406638137,1772005739813,151.0,0.000125,2]
[406638160,1772005831945,-150.0,0.00024953,2]
[406638161,1772005831957,-150.0,0.00025079,2]
[406638162,1772005831966,-80.57647408,0.00025522,11]
[406638163,1772005831977,-119.42352592,0.00025522,11]
[406638164,1772005831986,-800.01,0.00025523,12]
[406638165,1772005831995,-300.0,0.00025546,2]
[406638166,1772005832004,-300.0,0.00025546,2]
[406638167,1772005832014,-300.0,0.00025546,2]
[406638168,1772005832023,-1200.0,0.00025546,2]
[406638169,1772005832032,-511.7059,0.00025547,2]
[406638170,1772005832042,-115.24791035,0.00025547,4]
[406638171,1772005832053,-396.45798965,0.00025547,4]
[406638172,1772005832064,-511.7059,0.00025547,5]
[406638173,1772005832073,-91.83611035,0.00025547,2]
[406638174,1772005832095,-108.16388965,0.00025547,2]
[406638175,1772005832104,-849.89704653,0.00025547,2]
[406638176,1772005832115,-693.06526405,0.00025547,2]
[406638183,1772005837919,-421.69150181,0.00025547,2]
[406638184,1772005837928,-220.70834,0.00027,120]
[406638185,1772005837936,-177.0,0.00027079,2]
[406638186,1772005837944,-158.66296815,0.00027397,5]
[406638187,1772005837953,-296.79510823,0.00027397,5]
[406638188,1772005837961,-150.0,0.00027397,5]
[406638189,1772005837970,-159.174379,0.0002741,2]
[406638190,1772005837979,-1340.00698061,0.00027665,2]
[406638191,1772005837987,-2154.31882509,0.00027665,2]
[406638192,1772005837993,-800.0,0.00027733,17]
[406638193,1772005838000,-250.0,0.00027945,5]
[406638194,1772005838007,-1000.0,0.00028,5]
[406638195,1772005838015,-350.0,0.00028493,5]
[406638196,1772005838023,-316.60130558,0.00028589,2]
[406638197,1772005838029,-1949.21610228,0.00028591,2]
[406638198,1772005838044,-6759.89062382,0.00028591,2]
[406638199,1772005838050,-619.867034,0.00028591,2]
[406638200,1772005838057,-174.00976238,0.00028822,5]
[406638201,1772005838065,-374.89821362,0.00029041,5]
[406638202,1772005838074,-204.0,0.00029079,2]
[406638203,1772005838082,-800.0,0.00029682,22]
[406638204,1772005838090,-500.0,0.0002988,5]
[406638205,1772005838098,-500.0,0.0002988,5]
[406638206,1772005838106,-500.0,0.0002988,20]
[406638207,1772005838112,-519.91389862,0.0002988,5]
[406638208,1772005838119,-236.3388322,0.00030081,2]
[406638209,1772005838127,-500.0,0.00030176,120]
[406638210,1772005838135,-498.80438647,0.00030176,120]
[406638211,1772005838142,-242.9,0.00030195,2]
[406638212,1772005838150,-154.414229,0.00030213,30]
[406638213,1772005838158,-500.0,0.0003025,2]
[406638214,1772005838165,-500.0,0.0003025,2]
[406638215,1772005838173,-500.0,0.0003025,30]
[406638216,1772005838179,-151.5370647,0.0003025,30]
[406638217,1772005838186,-557.551,0.0003025,120]
[406638218,1772005838193,-475.0,0.0003025,120]
[406638219,1772005838201,-475.0,0.0003025,120]
[406638220,1772005838209,-475.0,0.0003025,120]
[406638221,1772005838216,-168.721,0.0003025,120]
[406638222,1772005838225,-213.98710793,0.0003095,2]
[406638223,1772005838235,-385.17679427,0.0003095,2]
[406638224,1772005838245,-684.75874537,0.0003095,2]
[406638225,1772005838255,-395.01081242,0.0003095,2]
[406638226,1772005838264,-744.54351979,0.00030981,2]
[406638227,1772005838274,-500.0,0.00031,7]
[406638228,1772005838283,-168.0,0.00031017,2]
[406638229,1772005838292,-231.0,0.00031079,2]
[406638230,1772005838302,-168.0,0.00031248,2]
[406638231,1772005838311,-430.0,0.00031293,2]
[406638232,1772005838321,-155.95569324,0.00031328,4]
[406638233,1772005838333,-800.0,0.00031371,28]
[406638234,1772005838343,-168.0,0.00031458,7]
[406638235,1772005838352,-171.0,0.00031614,2]
[406638236,1772005838362,-168.0,0.0003164,2]
[406638237,1772005838372,-168.0,0.00031675,2]
[406638238,1772005838382,-500.0,0.0003175,2]
[406638239,1772005838392,-168.0,0.00031803,2]
[406638240,1772005838402,-168.0,0.00031825,2]
[406638241,1772005838411,-244.69012403,0.00031863,49]
[406638242,1772005838420,-168.0,0.00031895,7]
[406638243,1772005838430,-171.0,0.00031961,2]
[406638244,1772005838439,-168.0,0.00031971,2]
[406638245,1772005838448,-2463.17659654,0.0003199,2]
[406638246,1772005838458,-2933.46,0.0003199,10]
[406638247,1772005838467,-2444.55,0.0003199,10]
[406638248,1772005838478,-500.0,0.00031999,30]
[406638249,1772005838488,-500.0,0.00031999,31]
[406638250,1772005838497,-500.0,0.00031999,32]
[406638251,1772005838507,-500.0,0.00031999,33]
[406638252,1772005838516,-500.0,0.00031999,34]
[406638253,1772005838526,-59223.22371134,0.00032,2]
[406638254,1772005838536,-201.86738514,0.00032,2]
[406638255,1772005838546,-168.0,0.00032137,2]
[406638256,1772005838556,-242.9,0.00032177,5]
[406638257,1772005838566,-171.0,0.00032183,2]
[406638258,1772005838576,-168.0,0.00032216,2]
[406638259,1772005838586,-200.0,0.000323,120]
[406638260,1772005838595,-160.117719,0.00032542,2]
[406638261,1772005838604,-168.0,0.00032543,2]
[406638262,1772005838614,-168.0,0.00032554,2]
[406638263,1772005838623,-171.0,0.00032575,7]
[406638264,1772005838632,-168.0,0.00032593,2]
[406638265,1772005838641,-168.0,0.00032721,2]
[406638266,1772005838650,-171.0,0.00032757,2]